[Event "Late-Titled-Tuesday-Blitz-July-09-2024"]
[Site "Chess.com"]
[Date "2024.07.09"]
[Round "6"]
[White "schachlana"]
[Black "mbachez"]
[Result "0-1"]
[WhiteElo "2363"]
[BlackElo "2620"]
[TimeControl "180+1"]
[EndTime "15:05:51 PDT"]
[Termination "mbachez won by resignation"]

1. e4 {[%clk 0:03:00.9]} 1... Nf6 {[%clk 0:02:59]} 2. e5 {[%clk 0:03:00.5]} 2...
Nd5 {[%clk 0:02:58.9]} 3. c4 {[%clk 0:03:00.5]} 3... Nb6 {[%clk 0:02:58.1]} 4.
d4 {[%clk 0:03:00.6]} 4... d6 {[%clk 0:02:58.5]} 5. f4 {[%clk 0:02:56.6]} 5...
dxe5 {[%clk 0:02:57]} 6. fxe5 {[%clk 0:02:57.5]} 6... Nc6 {[%clk 0:02:57.2]} 7.
Nf3 {[%clk 0:02:55.1]} 7... Bg4 {[%clk 0:02:56.9]} 8. Be3 {[%clk 0:02:54.6]}
8... e6 {[%clk 0:02:57.2]} 9. Be2 {[%clk 0:02:50.3]} 9... Bb4+ {[%clk 0:02:56]}
10. Nc3 {[%clk 0:02:47.3]} 10... Bxf3 {[%clk 0:02:51.3]} 11. gxf3 {[%clk
0:02:46.6]} 11... Ne7 {[%clk 0:02:42.2]} 12. O-O {[%clk 0:02:37.7]} 12... Nf5
{[%clk 0:02:41.9]} 13. Bf2 {[%clk 0:02:37.9]} 13... O-O {[%clk 0:02:40.7]} 14.
a3 {[%clk 0:02:36]} 14... Be7 {[%clk 0:02:31.7]} 15. Ne4 {[%clk 0:02:35.5]}
15... Bh4 {[%clk 0:02:31.6]} 16. Bxh4 {[%clk 0:02:29.4]} 16... Qxh4 {[%clk
0:02:30.3]} 17. d5 {[%clk 0:01:58.3]} 17... exd5 {[%clk 0:02:20.2]} 18. cxd5
{[%clk 0:01:59.2]} 18... Ne3 {[%clk 0:02:20.2]} 19. Qe1 {[%clk 0:01:52.9]} 19...
Qxe1 {[%clk 0:02:10.7]} 20. Rfxe1 {[%clk 0:01:53.1]} 20... Nbxd5 {[%clk
0:02:09.2]} 21. Rac1 {[%clk 0:01:50.4]} 21... c6 {[%clk 0:02:09.2]} 22. Nd6
{[%clk 0:01:44.8]} 22... Rab8 {[%clk 0:02:05.8]} 23. Kf2 {[%clk 0:01:41.5]}
23... Rfd8 {[%clk 0:01:59.1]} 24. Bd3 {[%clk 0:01:29.1]} 24... f6 {[%clk
0:01:53.3]} 25. Rxe3 {[%clk 0:01:26.2]} 25... fxe5 {[%clk 0:01:49]} 26. Nf5
{[%clk 0:01:20.8]} 26... Nxe3 {[%clk 0:01:48.6]} 27. Kxe3 {[%clk 0:01:21.7]}
27... g6 {[%clk 0:01:45.8]} 28. Bc4+ {[%clk 0:01:20.2]} 28... Kf8 {[%clk
0:01:45.7]} 29. Nh6 {[%clk 0:01:14]} 29... Rd4 {[%clk 0:01:45.5]} 30. Ng4 {[%clk
0:01:11.9]} 30... Re8 {[%clk 0:01:42.5]} 31. Nxe5 {[%clk 0:01:08.8]} 31... Rxc4
{[%clk 0:01:42.2]} 32. Rxc4 {[%clk 0:01:07.8]} 32... Rxe5+ {[%clk 0:01:42.3]}
33. Kd4 {[%clk 0:01:05.8]} 33... Rh5 {[%clk 0:01:41.5]} 34. Rc2 {[%clk
0:01:04.2]} 34... Ke7 {[%clk 0:01:40.8]} 35. Ke4 {[%clk 0:01:04.2]} 35... Ke6
{[%clk 0:01:40]} 36. Rd2 {[%clk 0:01:03.1]} 36... Rh4+ {[%clk 0:01:40.2]} 37.
Ke3 {[%clk 0:01:03.1]} 37... g5 {[%clk 0:01:40.6]} 38. Rg2 {[%clk 0:01:02.5]}
38... h6 {[%clk 0:01:40.7]} 39. Rd2 {[%clk 0:00:59.8]} 39... a5 {[%clk
0:01:40.6]} 40. Rc2 {[%clk 0:00:59.6]} 40... a4 {[%clk 0:01:40.2]} 41. Rd2
{[%clk 0:00:57.6]} 41... c5 {[%clk 0:01:39.2]} 42. Rc2 {[%clk 0:00:57.8]} 42...
b6 {[%clk 0:01:38.2]} 43. Rd2 {[%clk 0:00:53.2]} 43... Rh3 {[%clk 0:01:38.3]}
44. Ke4 {[%clk 0:00:49.9]} 44... Rh4+ {[%clk 0:01:36.4]} 45. Ke3 {[%clk
0:00:50.5]} 45... Rf4 {[%clk 0:01:35.7]} 46. Rd8 {[%clk 0:00:47.1]} 46... Rc4
{[%clk 0:01:34.4]} 47. Rb8 {[%clk 0:00:45.9]} 47... Rc2 {[%clk 0:01:34.3]} 48.
Rxb6+ {[%clk 0:00:46.2]} 48... Ke5 {[%clk 0:01:33.5]} 49. h3 {[%clk 0:00:46]}
49... h5 {[%clk 0:01:32.5]} 50. Kd3 {[%clk 0:00:43.7]} 50... Rh2 {[%clk
0:01:30.7]} 51. Rg6 {[%clk 0:00:42.8]} 51... Kf5 {[%clk 0:01:29.2]} 52. Rc6
{[%clk 0:00:43.4]} 52... Rxh3 {[%clk 0:01:29.3]} 53. Rxc5+ {[%clk 0:00:44.1]}
53... Kf6 {[%clk 0:01:25.9]} 54. Ke4 {[%clk 0:00:39.1]} 54... Rh4+ {[%clk
0:01:22.8]} 55. Ke3 {[%clk 0:00:35.4]} 55... Rh1 {[%clk 0:01:20.8]} 56. Rc6+
{[%clk 0:00:27.3]} 56... Kf7 {[%clk 0:01:09.7]} 57. Rc5 {[%clk 0:00:26]} 57...
Rg1 {[%clk 0:00:56.8]} 58. f4 {[%clk 0:00:21.7]} 58... Rg3+ {[%clk 0:00:48.3]}
59. Ke4 {[%clk 0:00:20.1]} 59... h4 {[%clk 0:00:43.8]} 60. fxg5 {[%clk
0:00:16.2]} 60... h3 {[%clk 0:00:43.4]} 61. Rc1 {[%clk 0:00:15.2]} 61... Rxg5
{[%clk 0:00:40.3]} 62. Rh1 {[%clk 0:00:15]} 62... Rh5 {[%clk 0:00:39.3]} 63. Kf3
{[%clk 0:00:13.5]} 63... Ke6 {[%clk 0:00:39.3]} 64. Kg3 {[%clk 0:00:13.7]} 64...
Kd5 {[%clk 0:00:39.4]} 65. Rxh3 {[%clk 0:00:13.5]} 65... Rxh3+ {[%clk
0:00:39.6]} 66. Kxh3 {[%clk 0:00:14.4]} 66... Kc4 {[%clk 0:00:39.8]} 67. Kg3
{[%clk 0:00:14.6]} 67... Kb3 {[%clk 0:00:40.1]} 68. Kf3 {[%clk 0:00:14.9]} 68...
Kxb2 {[%clk 0:00:40.4]} 69. Ke3 {[%clk 0:00:13.3]} 69... Kxa3 {[%clk 0:00:40.7]}
70. Kd2 {[%clk 0:00:11.9]} 70... Kb2 {[%clk 0:00:41.3]} 0-1

[Event "Late-Titled-Tuesday-Blitz-July-09-2024"]
[Site "Chess.com"]
[Date "2024.07.09"]
[Round "6"]
[White "slidingknight2775"]
[Black "Patricius007"]
[Result "1-0"]
[WhiteElo "2735"]
[BlackElo "2552"]
[TimeControl "180+1"]
[EndTime "15:05:52 PDT"]
[Termination "slidingknight2775 won by checkmate"]

1. c4 {[%clk 0:03:00.9]} 1... e6 {[%clk 0:02:55.5]} 2. Nf3 {[%clk 0:02:59.7]}
2... d5 {[%clk 0:02:55.5]} 3. e3 {[%clk 0:03:00.1]} 3... c5 {[%clk 0:02:54.9]}
4. cxd5 {[%clk 0:02:57.7]} 4... exd5 {[%clk 0:02:54.8]} 5. d4 {[%clk 0:02:57.5]}
5... Nf6 {[%clk 0:02:55.3]} 6. b3 {[%clk 0:02:55.7]} 6... Be7 {[%clk 0:02:54.7]}
7. Bb2 {[%clk 0:02:55.4]} 7... Nc6 {[%clk 0:02:55.4]} 8. Bb5 {[%clk 0:02:51.8]}
8... O-O {[%clk 0:02:55.5]} 9. O-O {[%clk 0:02:51.5]} 9... Bg4 {[%clk
0:02:52.3]} 10. Be2 {[%clk 0:02:46.6]} 10... Ne4 {[%clk 0:02:50.7]} 11. Nbd2
{[%clk 0:02:41.5]} 11... Bf6 {[%clk 0:02:48.5]} 12. h3 {[%clk 0:02:37.8]} 12...
Bh5 {[%clk 0:02:46.7]} 13. Ne5 {[%clk 0:01:55.2]} 13... Bxe2 {[%clk 0:02:44.6]}
14. Qxe2 {[%clk 0:01:56.1]} 14... Bxe5 {[%clk 0:02:34.9]} 15. dxe5 {[%clk
0:01:54.9]} 15... Re8 {[%clk 0:02:19.5]} 16. f4 {[%clk 0:01:45.5]} 16... Ng3
{[%clk 0:02:14.3]} 17. Qg4 {[%clk 0:01:37.5]} 17... Nxf1 {[%clk 0:02:14.3]} 18.
Rxf1 {[%clk 0:01:33.8]} 18... d4 {[%clk 0:02:14]} 19. Ne4 {[%clk 0:01:29.5]}
19... Qc8 {[%clk 0:01:48.7]} 20. Nf6+ {[%clk 0:01:22.5]} 20... Kh8 {[%clk
0:01:47.1]} 21. Nxe8 {[%clk 0:01:20.7]} 21... Qxg4 {[%clk 0:01:44.9]} 22. hxg4
{[%clk 0:01:21.2]} 22... Rxe8 {[%clk 0:01:45.5]} 23. exd4 {[%clk 0:01:20.3]}
23... cxd4 {[%clk 0:01:46.4]} 24. Rd1 {[%clk 0:01:17.9]} 24... Rd8 {[%clk
0:01:46.4]} 25. Kf2 {[%clk 0:01:10]} 25... f6 {[%clk 0:01:42]} 26. exf6 {[%clk
0:00:58.7]} 26... gxf6 {[%clk 0:01:42.9]} 27. a3 {[%clk 0:00:58.4]} 27... Kg7
{[%clk 0:01:42.5]} 28. b4 {[%clk 0:00:58.3]} 28... a6 {[%clk 0:01:41.1]} 29. Kf3
{[%clk 0:00:58.3]} 29... Kf7 {[%clk 0:01:31.9]} 30. Rd2 {[%clk 0:00:47.8]} 30...
Rd7 {[%clk 0:01:26.5]} 31. g3 {[%clk 0:00:42.7]} 31... Kg6 {[%clk 0:01:23.7]}
32. Rd3 {[%clk 0:00:33.2]} 32... Rd8 {[%clk 0:01:16.5]} 33. Ba1 {[%clk
0:00:30.2]} 33... Kf7 {[%clk 0:01:13.5]} 34. Ke4 {[%clk 0:00:27]} 34... Re8+
{[%clk 0:01:13.2]} 35. Kf3 {[%clk 0:00:27.5]} 35... Rd8 {[%clk 0:01:10.3]} 36.
Ke2 {[%clk 0:00:27.5]} 36... Ke6 {[%clk 0:01:08.9]} 37. Rd1 {[%clk 0:00:23]}
37... Kd5 {[%clk 0:01:08.4]} 38. Rh1 {[%clk 0:00:23.2]} 38... Rd7 {[%clk
0:01:08.4]} 39. Kd3 {[%clk 0:00:22.4]} 39... Re7 {[%clk 0:01:08.4]} 40. Rh5+
{[%clk 0:00:22.6]} 40... Kd6 {[%clk 0:01:06.2]} 41. Bxd4 {[%clk 0:00:21.6]}
41... Re1 {[%clk 0:01:03.5]} 42. Bxf6 {[%clk 0:00:19.2]} 42... Rg1 {[%clk
0:01:00.6]} 43. g5 {[%clk 0:00:14.8]} 43... Rxg3+ {[%clk 0:00:59.8]} 44. Ke4
{[%clk 0:00:15.4]} 44... Rxa3 {[%clk 0:00:53]} 45. Rxh7 {[%clk 0:00:15.6]} 45...
Rg3 {[%clk 0:00:49.2]} 46. Rxb7 {[%clk 0:00:13.4]} 46... Rg1 {[%clk 0:00:45.4]}
47. b5 {[%clk 0:00:12.3]} 47... axb5 {[%clk 0:00:44.6]} 48. Rxb5 {[%clk
0:00:13.2]} 48... Re1+ {[%clk 0:00:41.2]} 49. Kf5 {[%clk 0:00:13.2]} 49... Na7
{[%clk 0:00:39.4]} 50. Re5 {[%clk 0:00:12.3]} 50... Rg1 {[%clk 0:00:38.7]} 51.
Re6+ {[%clk 0:00:11.8]} 51... Kd5 {[%clk 0:00:36.7]} 52. Re2 {[%clk 0:00:07.8]}
52... Nc8 {[%clk 0:00:36.4]} 53. Rd2+ {[%clk 0:00:07.9]} 53... Kc6 {[%clk
0:00:36.2]} 54. Ke6 {[%clk 0:00:07.9]} 54... Re1+ {[%clk 0:00:34.3]} 55. Be5
{[%clk 0:00:07.8]} 55... Rg1 {[%clk 0:00:33.2]} 56. Rc2+ {[%clk 0:00:07.7]}
56... Kb7 {[%clk 0:00:32.4]} 57. Rc7+ {[%clk 0:00:07.6]} 57... Kb8 {[%clk
0:00:30.7]} 58. Rc1+ {[%clk 0:00:08]} 58... Ka8 {[%clk 0:00:30.9]} 59. Rxg1
{[%clk 0:00:08.1]} 59... Na7 {[%clk 0:00:31.4]} 60. Ra1 {[%clk 0:00:08.2]} 60...
Kb7 {[%clk 0:00:31.8]} 61. Rxa7+ {[%clk 0:00:08.9]} 61... Kc6 {[%clk 0:00:32.3]}
62. Rc7+ {[%clk 0:00:09]} 62... Kb5 {[%clk 0:00:33.2]} 63. Rc3 {[%clk
0:00:08.9]} 63... Kb6 {[%clk 0:00:34.1]} 64. g6 {[%clk 0:00:09.3]} 64... Kb5
{[%clk 0:00:34.6]} 65. g7 {[%clk 0:00:09.9]} 65... Kb6 {[%clk 0:00:35.5]} 66.
g8=Q {[%clk 0:00:10.2]} 66... Kb5 {[%clk 0:00:36.4]} 67. Qb8+ {[%clk 0:00:10.5]}
67... Ka6 {[%clk 0:00:36.3]} 68. Ra3# {[%clk 0:00:10.2]} 1-0

[Event "Late-Titled-Tuesday-Blitz-July-09-2024"]
[Site "Chess.com"]
[Date "2024.07.09"]
[Round "6"]
[White "vladjianu"]
[Black "jbking07"]
[Result "0-1"]
[WhiteElo "2628"]
[BlackElo "2469"]
[TimeControl "180+1"]
[EndTime "15:05:52 PDT"]
[Termination "jbking07 won on time"]

1. d4 {[%clk 0:03:00.9]} 1... Nf6 {[%clk 0:02:58.8]} 2. c4 {[%clk 0:03:00.9]}
2... e6 {[%clk 0:02:57.1]} 3. Nf3 {[%clk 0:03:00.8]} 3... d5 {[%clk 0:02:55.1]}
4. g3 {[%clk 0:02:59.5]} 4... Bb4+ {[%clk 0:02:54.6]} 5. Bd2 {[%clk 0:02:56.7]}
5... Be7 {[%clk 0:02:54.5]} 6. Bg2 {[%clk 0:02:54]} 6... O-O {[%clk 0:02:55]} 7.
O-O {[%clk 0:02:51.4]} 7... Nbd7 {[%clk 0:02:54.9]} 8. Qc2 {[%clk 0:02:41.8]}
8... c6 {[%clk 0:02:52.3]} 9. Rd1 {[%clk 0:02:40.6]} 9... b6 {[%clk 0:02:48.3]}
10. Bf4 {[%clk 0:02:41]} 10... Bb7 {[%clk 0:02:47.5]} 11. Ne5 {[%clk 0:02:39.1]}
11... Nxe5 {[%clk 0:02:46.2]} 12. dxe5 {[%clk 0:02:37.3]} 12... Nd7 {[%clk
0:02:46.1]} 13. cxd5 {[%clk 0:02:37.4]} 13... cxd5 {[%clk 0:02:45.7]} 14. e4
{[%clk 0:02:37.4]} 14... dxe4 {[%clk 0:02:44.9]} 15. Bxe4 {[%clk 0:02:37.9]}
15... Bxe4 {[%clk 0:02:44.4]} 16. Qxe4 {[%clk 0:02:38.8]} 16... Nc5 {[%clk
0:02:44]} 17. Qe2 {[%clk 0:02:37.7]} 17... Qc8 {[%clk 0:02:41.6]} 18. Nc3 {[%clk
0:02:38.3]} 18... Qb7 {[%clk 0:02:41.1]} 19. b4 {[%clk 0:02:22.2]} 19... Na6
{[%clk 0:02:33.2]} 20. a3 {[%clk 0:02:17.9]} 20... Rad8 {[%clk 0:02:27.9]} 21.
Ne4 {[%clk 0:02:10.1]} 21... Nb8 {[%clk 0:02:24.6]} 22. h4 {[%clk 0:02:07.6]}
22... Nc6 {[%clk 0:02:22.2]} 23. Qe3 {[%clk 0:01:58.2]} 23... Rd5 {[%clk
0:02:13.2]} 24. Nc3 {[%clk 0:01:54.3]} 24... Rxd1+ {[%clk 0:02:05.9]} 25. Rxd1
{[%clk 0:01:55.2]} 25... Rd8 {[%clk 0:02:05]} 26. Rxd8+ {[%clk 0:01:54.3]} 26...
Nxd8 {[%clk 0:02:05.9]} 27. Bg5 {[%clk 0:01:47.2]} 27... f6 {[%clk 0:02:04.7]}
28. exf6 {[%clk 0:01:45.7]} 28... gxf6 {[%clk 0:01:59.9]} 29. Bh6 {[%clk
0:01:43.3]} 29... Qd7 {[%clk 0:01:57.8]} 30. Qe4 {[%clk 0:01:35.8]} 30... f5
{[%clk 0:01:27.5]} 31. Qe5 {[%clk 0:01:34.9]} 31... Bd6 {[%clk 0:01:16.4]} 32.
Qd4 {[%clk 0:01:33.8]} 32... Nc6 {[%clk 0:01:12.5]} 33. Qe3 {[%clk 0:01:33.7]}
33... Be7 {[%clk 0:01:02.5]} 34. Ne2 {[%clk 0:01:26.6]} 34... Bf6 {[%clk
0:01:01.7]} 35. Bg5 {[%clk 0:01:24]} 35... Bg7 {[%clk 0:01:01.2]} 36. Nf4 {[%clk
0:01:23]} 36... h6 {[%clk 0:00:59.4]} 37. Nxe6 {[%clk 0:01:12.7]} 37... hxg5
{[%clk 0:00:58.6]} 38. Nxg5 {[%clk 0:01:13.6]} 38... Nd4 {[%clk 0:00:57.5]} 39.
Kh2 {[%clk 0:01:04.7]} 39... Bf6 {[%clk 0:00:51.9]} 40. Nh3 {[%clk 0:00:51.1]}
40... Kf7 {[%clk 0:00:47.7]} 41. Nf4 {[%clk 0:00:49.4]} 41... Qc6 {[%clk
0:00:47.4]} 42. Qd3 {[%clk 0:00:37.9]} 42... Qe4 {[%clk 0:00:35.4]} 43. Qc4+
{[%clk 0:00:35.6]} 43... Ne6 {[%clk 0:00:33.7]} 44. Qb3 {[%clk 0:00:33.7]} 44...
Qe1 {[%clk 0:00:24]} 45. Kg2 {[%clk 0:00:30.2]} 45... Bd4 {[%clk 0:00:21.6]} 46.
Qa2 {[%clk 0:00:20.9]} 46... Qe4+ {[%clk 0:00:19]} 47. Kh2 {[%clk 0:00:20.4]}
47... Kf6 {[%clk 0:00:19]} 48. Nd5+ {[%clk 0:00:20]} 48... Ke5 {[%clk
0:00:18.7]} 49. Ne7 {[%clk 0:00:19.2]} 49... Qf3 {[%clk 0:00:14.7]} 50. Ng6+
{[%clk 0:00:08.6]} 50... Kf6 {[%clk 0:00:14.4]} 51. h5 {[%clk 0:00:06.9]} 51...
Bxf2 {[%clk 0:00:13]} 52. Qb2+ {[%clk 0:00:04.8]} 52... Bd4 {[%clk 0:00:12.5]}
53. Qd2 {[%clk 0:00:04.7]} 53... Qxh5+ {[%clk 0:00:12.5]} 54. Nh4 {[%clk
0:00:05.3]} 54... f4 {[%clk 0:00:12.1]} 55. Kg2 {[%clk 0:00:04.3]} 55... Qg4
{[%clk 0:00:11.5]} 56. Nf3 {[%clk 0:00:04.7]} 56... Be3 {[%clk 0:00:10.8]} 57.
Qc3+ {[%clk 0:00:04.1]} 57... Ke7 {[%clk 0:00:10.3]} 0-1

[Event "Late-Titled-Tuesday-Blitz-July-09-2024"]
[Site "Chess.com"]
[Date "2024.07.09"]
[Round "6"]
[White "Fandorine"]
[Black "AcostaPablo"]
[Result "1-0"]
[WhiteElo "2921"]
[BlackElo "2706"]
[TimeControl "180+1"]
[EndTime "15:05:54 PDT"]
[Termination "Fandorine won by resignation"]

1. d4 {[%clk 0:03:00.9]} 1... d5 {[%clk 0:02:59.1]} 2. c4 {[%clk 0:03:01.1]}
2... e6 {[%clk 0:02:58.6]} 3. Nf3 {[%clk 0:03:00.9]} 3... Nf6 {[%clk 0:02:59.2]}
4. Nc3 {[%clk 0:03:01.3]} 4... Be7 {[%clk 0:02:58]} 5. g3 {[%clk 0:03:01.4]}
5... O-O {[%clk 0:02:57]} 6. Bg2 {[%clk 0:03:01.8]} 6... dxc4 {[%clk 0:02:57.5]}
7. Ne5 {[%clk 0:03:01.1]} 7... Nbd7 {[%clk 0:02:56.1]} 8. Nxc4 {[%clk
0:03:00.4]} 8... c5 {[%clk 0:02:55.8]} 9. O-O {[%clk 0:02:54.1]} 9... cxd4
{[%clk 0:02:52.8]} 10. Qxd4 {[%clk 0:02:55]} 10... Nb6 {[%clk 0:02:46.2]} 11.
Qxd8 {[%clk 0:02:53.9]} 11... Rxd8 {[%clk 0:02:45.4]} 12. Nxb6 {[%clk
0:02:52.6]} 12... axb6 {[%clk 0:02:45.5]} 13. Bf4 {[%clk 0:02:52.9]} 13... Bc5
{[%clk 0:01:59]} 14. Rfd1 {[%clk 0:02:42.9]} 14... Re8 {[%clk 0:01:59]} 15. h3
{[%clk 0:02:32.6]} 15... e5 {[%clk 0:01:53.5]} 16. Bg5 {[%clk 0:02:32.4]} 16...
Bd4 {[%clk 0:01:52.4]} 17. Rac1 {[%clk 0:02:07.7]} 17... Be6 {[%clk 0:01:39.3]}
18. a3 {[%clk 0:02:01.6]} 18... Nd7 {[%clk 0:01:28.1]} 19. Bxb7 {[%clk
0:01:53.7]} 19... Rab8 {[%clk 0:01:27.9]} 20. Bg2 {[%clk 0:01:54.3]} 20... h6
{[%clk 0:01:20.7]} 21. Bd2 {[%clk 0:01:50.6]} 21... Bb3 {[%clk 0:01:16.2]} 22.
Rf1 {[%clk 0:01:38.2]} 22... Nf6 {[%clk 0:01:16.2]} 23. e3 {[%clk 0:01:33.8]}
23... Bc5 {[%clk 0:01:16.4]} 24. Ne4 {[%clk 0:01:22.8]} 24... Nxe4 {[%clk
0:01:16.2]} 25. Bxe4 {[%clk 0:01:23.7]} 25... Rbd8 {[%clk 0:01:16.3]} 26. Bc3
{[%clk 0:01:20.4]} 26... g6 {[%clk 0:01:16.6]} 27. g4 {[%clk 0:01:20.5]} 27...
Kg7 {[%clk 0:01:05.7]} 28. Kg2 {[%clk 0:01:15.7]} 28... Kf6 {[%clk 0:01:02.1]}
29. Rce1 {[%clk 0:00:44.7]} 29... Ke6 {[%clk 0:01:00.2]} 30. Rc1 {[%clk
0:00:19.8]} 30... f5 {[%clk 0:00:59.7]} 31. Bc2 {[%clk 0:00:20.2]} 31... Bd5+
{[%clk 0:00:58.3]} 32. Kh2 {[%clk 0:00:20.8]} 32... Rf8 {[%clk 0:00:53.6]} 33.
gxf5+ {[%clk 0:00:20.4]} 33... gxf5 {[%clk 0:00:54]} 34. Rg1 {[%clk 0:00:18.5]}
34... Rf6 {[%clk 0:00:51.4]} 35. b4 {[%clk 0:00:14.4]} 35... Bd6 {[%clk
0:00:51]} 36. Rgd1 {[%clk 0:00:09.4]} 36... Rc8 {[%clk 0:00:50.5]} 37. Bb1
{[%clk 0:00:04.4]} 37... Rg8 {[%clk 0:00:49.4]} 38. Rxd5 {[%clk 0:00:04.1]}
38... Rfg6 {[%clk 0:00:46.9]} 39. Ba2 {[%clk 0:00:02.9]} 39... Rg2+ {[%clk
0:00:46.4]} 40. Kh1 {[%clk 0:00:03.4]} 40... R8g6 {[%clk 0:00:42.1]} 41. Rd2+
{[%clk 0:00:03.1]} 41... Ke7 {[%clk 0:00:41.8]} 42. Rcd1 {[%clk 0:00:03.6]}
42... R2g5 {[%clk 0:00:38.6]} 43. Rxd6 {[%clk 0:00:03.4]} 43... Rxd6 {[%clk
0:00:39.3]} 44. Rxd6 {[%clk 0:00:03.8]} 44... Kxd6 {[%clk 0:00:40.2]} 45. Bxe5+
{[%clk 0:00:04.4]} 45... Ke7 {[%clk 0:00:40]} 46. Bf4 {[%clk 0:00:04.9]} 46...
Rg6 {[%clk 0:00:39.7]} 47. Bc4 {[%clk 0:00:04.6]} 47... Rc6 {[%clk 0:00:39.8]}
48. Bd3 {[%clk 0:00:04.7]} 48... Kf6 {[%clk 0:00:40.3]} 49. a4 {[%clk
0:00:04.2]} 49... Rc3 {[%clk 0:00:40.5]} 50. Bb5 {[%clk 0:00:04.5]} 50... h5
{[%clk 0:00:38.7]} 51. Kg2 {[%clk 0:00:04.5]} 51... Rb3 {[%clk 0:00:39]} 52. Bc7
{[%clk 0:00:05]} 52... Rxb4 {[%clk 0:00:39.1]} 53. Bxb6 {[%clk 0:00:05.6]} 53...
f4 {[%clk 0:00:39.2]} 54. exf4 {[%clk 0:00:05.6]} 54... Kf5 {[%clk 0:00:38.1]}
55. Be3 {[%clk 0:00:05.4]} 55... Rb3 {[%clk 0:00:36.4]} 56. Bd7+ {[%clk
0:00:05.1]} 56... Kf6 {[%clk 0:00:37]} 57. a5 {[%clk 0:00:05.6]} 57... Ra3
{[%clk 0:00:37.6]} 58. Bb6 {[%clk 0:00:04.8]} 58... Ke7 {[%clk 0:00:37.8]} 59.
Bc8 {[%clk 0:00:04.9]} 59... Kf6 {[%clk 0:00:38]} 60. Bb7 {[%clk 0:00:04.9]}
60... Kf5 {[%clk 0:00:37.9]} 61. a6 {[%clk 0:00:04.7]} 61... Kxf4 {[%clk
0:00:38.8]} 62. a7 {[%clk 0:00:04.5]} 62... Rxa7 {[%clk 0:00:39.4]} 63. Bxa7
{[%clk 0:00:04.9]} 63... h4 {[%clk 0:00:40.2]} 64. Be3+ {[%clk 0:00:05.4]} 64...
Kf5 {[%clk 0:00:40.3]} 65. Bf3 {[%clk 0:00:05.9]} 65... Kg6 {[%clk 0:00:41.1]}
66. Bg4 {[%clk 0:00:06.1]} 66... Kf6 {[%clk 0:00:39.7]} 67. f4 {[%clk 0:00:07]}
67... Kg6 {[%clk 0:00:40.3]} 68. Bf2 {[%clk 0:00:07.9]} 68... Kf6 {[%clk
0:00:41]} 69. Bxh4+ {[%clk 0:00:08.8]} 69... Kg6 {[%clk 0:00:41.9]} 70. Bg3
{[%clk 0:00:09.4]} 70... Kh7 {[%clk 0:00:42.8]} 71. h4 {[%clk 0:00:10.3]} 1-0

[Event "Late-Titled-Tuesday-Blitz-July-09-2024"]
[Site "Chess.com"]
[Date "2024.07.09"]
[Round "6"]
[White "UB_TheQueen"]
[Black "Martins-BR"]
[Result "1-0"]
[WhiteElo "2115"]
[BlackElo "2346"]
[TimeControl "180+1"]
[EndTime "15:05:59 PDT"]
[Termination "UB_TheQueen won on time"]

1. e4 {[%clk 0:03:00.9]} 1... c5 {[%clk 0:02:59.2]} 2. Nf3 {[%clk 0:03:00.5]}
2... e6 {[%clk 0:02:59.4]} 3. d4 {[%clk 0:03:01]} 3... cxd4 {[%clk 0:02:59.9]}
4. Nxd4 {[%clk 0:03:01.9]} 4... Nf6 {[%clk 0:02:58.4]} 5. Nc3 {[%clk 0:03:02.1]}
5... d6 {[%clk 0:02:58.5]} 6. Bc4 {[%clk 0:02:59]} 6... Be7 {[%clk 0:02:55.2]}
7. Bb3 {[%clk 0:02:58.7]} 7... Na6 {[%clk 0:02:53]} 8. g4 {[%clk 0:02:57.4]}
8... Nc5 {[%clk 0:02:51.5]} 9. f3 {[%clk 0:02:57.1]} 9... a6 {[%clk 0:02:46.1]}
10. Be3 {[%clk 0:02:56.9]} 10... h6 {[%clk 0:02:38.2]} 11. Qd2 {[%clk
0:02:56.3]} 11... Qc7 {[%clk 0:02:36.4]} 12. O-O-O {[%clk 0:02:54.3]} 12... Bd7
{[%clk 0:02:35]} 13. h4 {[%clk 0:02:53.6]} 13... g6 {[%clk 0:02:28.3]} 14. Bxh6
{[%clk 0:02:45.1]} 14... O-O-O {[%clk 0:02:19.5]} 15. Be3 {[%clk 0:02:39.6]}
15... Kb8 {[%clk 0:02:15.4]} 16. Kb1 {[%clk 0:02:27.2]} 16... Rc8 {[%clk
0:02:11.6]} 17. Rh2 {[%clk 0:02:12.1]} 17... Nxb3 {[%clk 0:02:08.2]} 18. axb3
{[%clk 0:02:11.6]} 18... Ka8 {[%clk 0:01:56.2]} 19. b4 {[%clk 0:01:57.6]} 19...
d5 {[%clk 0:01:46.3]} 20. g5 {[%clk 0:01:52.5]} 20... Nh5 {[%clk 0:01:36.8]} 21.
exd5 {[%clk 0:01:52.3]} 21... Bxb4 {[%clk 0:01:36.1]} 22. dxe6 {[%clk
0:01:39.8]} 22... fxe6 {[%clk 0:01:35.4]} 23. Ncb5 {[%clk 0:01:13.4]} 23... Qa5
{[%clk 0:01:16.8]} 24. c3 {[%clk 0:01:05.5]} 24... Be7 {[%clk 0:01:01.6]} 25. b4
{[%clk 0:00:49.7]} 25... Qa4 {[%clk 0:00:58]} 26. Kb2 {[%clk 0:00:38.2]} 26...
Bxb5 {[%clk 0:00:44.2]} 27. Ra1 {[%clk 0:00:38]} 27... Rhd8 {[%clk 0:00:35.8]}
28. Rxa4 {[%clk 0:00:32.5]} 28... Bxa4 {[%clk 0:00:36.7]} 29. Qe2 {[%clk
0:00:22.6]} 29... e5 {[%clk 0:00:34.8]} 30. Ne6 {[%clk 0:00:21.6]} 30... Bb5
{[%clk 0:00:32.4]} 31. Qe1 {[%clk 0:00:16]} 31... Rd3 {[%clk 0:00:27.8]} 32. Nc5
{[%clk 0:00:14.7]} 32... Bxc5 {[%clk 0:00:26.7]} 33. Bxc5 {[%clk 0:00:15.6]}
33... Rxf3 {[%clk 0:00:24.4]} 34. Qxe5 {[%clk 0:00:15.7]} 34... Nf4 {[%clk
0:00:24.2]} 35. Qg7 {[%clk 0:00:11.2]} 35... Nd3+ {[%clk 0:00:23.2]} 36. Kb3
{[%clk 0:00:11.7]} 36... Nxc5+ {[%clk 0:00:20.9]} 37. bxc5 {[%clk 0:00:12.6]}
37... Rxc5 {[%clk 0:00:19.1]} 38. Qxg6 {[%clk 0:00:10.7]} 38... Rcxc3+ {[%clk
0:00:17.6]} 39. Kb2 {[%clk 0:00:10.3]} 39... Rb3+ {[%clk 0:00:17.4]} 40. Ka2
{[%clk 0:00:08.3]} 40... Ra3+ {[%clk 0:00:16.7]} 41. Kb2 {[%clk 0:00:08.7]}
41... Rfb3+ {[%clk 0:00:16.4]} 42. Kc1 {[%clk 0:00:08.9]} 42... Ra1+ {[%clk
0:00:09.2]} 43. Kd2 {[%clk 0:00:09.3]} 43... Ra2+ {[%clk 0:00:07.9]} 44. Kc1
{[%clk 0:00:07.8]} 44... Rc3+ {[%clk 0:00:06.5]} 45. Kb1 {[%clk 0:00:05.6]}
45... Rxh2 {[%clk 0:00:06.2]} 46. Qg8+ {[%clk 0:00:05.4]} 46... Ka7 {[%clk
0:00:06.2]} 47. Qd5 {[%clk 0:00:04.5]} 47... Rcc2 {[%clk 0:00:05.9]} 48. Qd4+
{[%clk 0:00:04.1]} 48... b6 {[%clk 0:00:02.3]} 49. Qg7+ {[%clk 0:00:01.6]} 49...
Ka8 {[%clk 0:00:02.4]} 50. Qf8+ {[%clk 0:00:02]} 50... Kb7 {[%clk 0:00:02.7]}
51. Qe7+ {[%clk 0:00:02.6]} 51... Rc7 {[%clk 0:00:02.6]} 52. Qe4+ {[%clk
0:00:02]} 52... Bc6 {[%clk 0:00:01.5]} 53. Qe5 {[%clk 0:00:01.6]} 53... Rd2
{[%clk 0:00:01]} 54. g6 {[%clk 0:00:01.4]} 1-0